Cogmind - Beta 9.4 @@@ ROGUE MODE // 2020.03.04 @ 16:39:57 Player: MJWkr Result: Destroyed by G-47 Trooper with Particle Gun Performance ------------- Evolutions (2) 1000 Regions Visited (4) 800 Robots Destroyed (25) 125 Value Destroyed (600) 600 Prototype IDs (0) 0 Alien Tech Used (0) 0 Bonus (77) 77 TOTAL SCORE: 2602 Bonus ------- High Alert Combat Kills 25 Follower Combat Kills 65 Friendly Fire -13 Cogmind --------- Core Integrity 0/550 Matter 29/300 Energy 95/100 System Corruption 2% Temperature Cool (27) Movement Core (50) Location -8/Materials Parts ------- > --- POWER (1) -------- (None) > --- PROPULSION (4) --- (None) > --- UTILITY (4) ------ (None) > --- WEAPON (2) ------- (None) > --- INVENTORY (4) ---- Ion Engine Wheel Medium Storage Unit Advanced Sensor Array Peak State ------------ > --- POWER ------------ (None) > --- PROPULSION ------- Improved Titanium Leg Improved Titanium Leg Improved Titanium Leg Improved Titanium Leg > --- UTILITY ---------- Improved Cooling System > --- WEAPON ----------- (None) > --- INVENTORY -------- Ion Engine Wheel Medium Storage Unit Advanced Sensor Array [Rating: 20] Favorites ----------- Power Ion Engine Engine Ion Engine Propulsion Armored Wheel Leg Improved Titanium Leg Wheel Armored Wheel Hover Unit Hover Unit Utility Small Storage Unit Device Heat Sink Storage Small Storage Unit Processor Visual Processing Unit Protection Medium Armor Plating Weapon Assault Rifle Energy Gun Medium Laser Energy Cannon Heavy Particle Cannon Ballistic Gun Assault Rifle Launcher Grenade Launcher Build | -11 -10 -10 -9 -8 ------- Run | Scr Mat Min Mat Mat Slots Evolved 4 | . . . 2 2 Power . | . . . . . Propulsion 2 | . . . 1 1 Utility 2 | . . . 1 1 Weapon . | . . . . . Parts Attached 38 | 7 1 . 17 13 Power 1 | 1 . . . . Engine 1 | 1 . . . . Core . | . . . . . Reactor . | . . . . . Propulsion 15 | 2 . . 4 9 Treads . | . . . . . Leg 4 | . . . . 4 Wheel 7 | 2 . . 4 1 Hover 4 | . . . . 4 Flight . | . . . . . Utility 14 | 1 1 . 9 3 Device 3 | . . . 2 1 Storage 2 | 1 1 . . . Processor 1 | . . . 1 . Hackware . | . . . . . Protection 8 | . . . 6 2 Artifact . | . . . . . Weapon 8 | 3 . . 4 1 Energy Gun 4 | 1 . . 3 . Energy Cannon 1 | . . . . 1 Ballistic Gun 2 | 2 . . . . Ballistic Cannon . | . . . . . Launcher 1 | . . . 1 . Special Weapon . | . . . . . Impact Weapon . | . . . . . Slashing Weapon . | . . . . . Piercing Weapon . | . . . . . Special Melee Weapon . | . . . . . Unidentified Prototypes . | . . . . . Parts Lost 16 | . . . 7 9 Power 1 | . . . . 1 Propulsion 4 | . . . 1 3 Utility 5 | . . . 2 3 Weapon 6 | . . . 4 2 Highest Loss Streak 6 | . . . 4 6 Average Slot Usage (%) 77 | . 87 100 93 47 Engine 9 | . 14 14 11 3 Leg 1 | . . . . 3 Wheel 25 | . 28 28 31 15 Device 4 | . . . 4 7 Storage 9 | . 16 28 13 . Processor 1 | . . . 2 . Protection 7 | . . . 10 7 Energy Gun 9 | . 14 14 11 3 Ballistic Gun 5 | . 14 14 6 . Launcher 3 | . . . 3 3 Naked Turns 54 | . . . . 54 Heaviest Build 29 | 13 15 15 29 25 Greatest Support 80 | 20 20 20 40 80 Greatest Overweight (x) 1 | . . . 1 1 Average Overweight (x) . | . . . . . Largest Inventory Capacity 6 | 6 6 6 6 4 Average Capacity 5 | 5 6 6 5 4 Most Carried 6 | 5 6 6 6 4 Average Carried 4 | 2 5 6 5 3 Final Capacity 6 | 6 6 6 4 4 Final Carried 6 | 5 6 6 4 4 Class Distribution -------------------- 100% | Mutant Dominant Class ---------------- Mutant | -10/Materials Mutant | -10/Mines Mutant | -9/Materials Mutant | -8/Materials Resources | -11 -10 -10 -9 -8 ----------- Run | Scr Mat Min Mat Mat Matter Collected 487 | 273 . . 214 . Remotely . | . . . . . Salvage Created 586 | 58 . . 460 68 Parts 51 | 1 . . 47 3 Haulers Intercepted 1 | . . . 1 . Recyclers Shooed . | . . . . . Parts Field Recycled . | . . . . . Retrieved Matter . | . . . . . Parts Self-Destructed . | . . . . . Prevented . | . . . . . Kills | -11 -10 -10 -9 -8 ------- Run | Scr Mat Min Mat Mat Combat Hostiles Destroyed 20 | . . . 17 3 Guns 9 | . . . 9 . AOE 11 | . . . 8 3 Classes Destroyed 9 | 1 . . 7 1 Worker 1 | . . . 1 . Hauler 1 | . . . 1 . Recycler 1 | 1 . . . . Operator 1 | . . . . 1 Watcher 1 | . . . 1 . Swarmer 10 | . . . 10 . Grunt 7 | . . . 4 3 Brawler 1 | . . . 1 . Sentry 2 | . . . 2 . Best Kill Streak 6 | 1 . . 6 4 Combat Bots Only 5 | . . . 5 3 Max Kills in Single Turn 3 | 1 . . 3 1 Gunslinging . | . . . . . Exploded 2 | . . . 2 1 Melee . | . . . . . Uniques/NPCs Destroyed . | . . . . . Combat | -11 -10 -10 -9 -8 -------- Run | Scr Mat Min Mat Mat Damage Taken 2353 | . . . 884 1469 Core 671 | . . . 109 562 Absorbed by Shields . | . . . . . Core Remaining (%) 90 | 100 . 100 72 . Volleys Fired 48 | 1 . . 39 8 Largest 2 | 2 . . 2 2 Hottest 90 | 70 . . 90 75 Shots Fired 85 | 2 . . 70 13 Gun 70 | 2 . . 63 5 Cannon 3 | . . . . 3 Launcher 12 | . . . 7 5 Special . | . . . . . Kinetic 25 | 1 . . 24 . Thermal 23 | 1 . . 14 8 Explosive 12 | . . . 7 5 Electromagnetic 25 | . . . 25 . Robot Hit Streak 16 | 1 . . 16 2 Robot Miss Streak 5 | . . . 5 2 Penetration Max . | . . . . . Secondary Targets 2 | . . . 2 . Max Gunslinging Chain 1 | . . . 1 . Shots Hit Robots 48 | 1 . . 39 8 Core Hits 47 | 1 . . 30 16 Critical Hits . | . . . . . Critical Kills . | . . . . . Critical Parts Destroyed . | . . . . . Melee Attacks . | . . . . . Impact . | . . . . . Slashing . | . . . . . Piercing . | . . . . . Sneak Attacks . | . . . . . Combat Hostiles . | . . . . . Follow-up Attacks . | . . . . . Damage Inflicted 1720 | 15 . 1 1055 649 Guns 548 | 15 . . 502 31 Cannons 25 | . . . . 25 Explosions 1127 | . . . 553 574 Melee . | . . . . . Ramming 20 | . . 1 . 19 Kinetic 216 | 15 . . 201 . Thermal 193 | . . . 137 56 Explosive 1101 | . . . 527 574 Electromagnetic 190 | . . . 190 . Impact . | . . . . . Slashing . | . . . . . Piercing . | . . . . . Highest Corruption 2 | . . . 2 2 Average Corruption 2 | . . . 2 2 Corruption Purged . | . . . . . Effects 2 | . . . 2 . Message Errors 1 | . . . 1 . Heat Flow Errors 1 | . . . 1 . Overload Shots . | . . . . . Overflow Damage 2 | . . . . 2 Projectiles . | . . . . . Explosions 2 | . . . . 2 Melee . | . . . . . Knockbacks 1 | . . 1 . . Impact 1 | . . 1 . . Kinetic . | . . . . . Secondary . | . . . . . Self-Inflicted Damage 7 | . . . . 7 Shots . | . . . . . Rammed 6 | . . 1 . 5 Targets Rammed 8 | . . 1 . 7 Kicked 2 | . . . . 2 Crushed . | . . . . . Highest Temperature 351 | 9 . . 351 61 Average Temperature 64 | 6 . . 69 25 Received Heat Transfer 849 | . . . 174 675 Siege Activations . | . . . . . Robots Corrupted . | . . . . . Combat Hostiles . | . . . . . Parts Fried . | . . . . . Impact Corruptions . | . . . . . Robots Melted . | . . . . . Combat Hostiles . | . . . . . Parts Melted . | . . . . . Heat Transferred 483 | . . . 371 112 Parts Sabotaged . | . . . . . Parts Stolen . | . . . . . Parts Stripped . | . . . . . Power Chain Reactions 1 | . . . 1 . Missiles Intercepted . | . . . . . Alert | -11 -10 -10 -9 -8 ------- Run | Scr Mat Min Mat Mat Peak Influence 546 | 5 29 16 546 230 Average Influence 149 | 2 14 16 236 148 Maximum Alert Level 2 | . . . 2 1 Low Security (%) 76 | 100 100 100 49 93 Level 1 15 | . . . 31 6 Level 2 7 | . . . 18 . Level 3 . | . . . . . Level 4 . | . . . . . Level 5 . | . . . . . High Security . | . . . . . Max Security . | . . . . . Squads Dispatched 4 | . . . 2 2 Investigation . | . . . . . Extermination . | . . . . . Reinforcement 4 | . . . 2 2 Assault . | . . . . . Garrison . | . . . . . Intercept . | . . . . . Construction Impeded 1 | . . . . 1 Haulers Reinforced . | . . . . . Stealth | -11 -10 -10 -9 -8 --------- Run | Scr Mat Min Mat Mat Distress Signals 3 | . . . 2 1 Communications Jammed . | . . . . . Distress Signals . | . . . . . Times Spotted 61 | . 4 . 27 30 Peak Tracking Total 14 | . 4 . 8 14 Tactical Retreats 4 | . . . 1 3 Traps | -11 -10 -10 -9 -8 ------- Run | Scr Mat Min Mat Mat Traps Triggered . | . . . . . Indirectly . | . . . . . Trap Hack Attempts . | . . . . . Triggered . | . . . . . Disarmed . | . . . . . Reprogrammed . | . . . . . Reused . | . . . . . Traps Extracted . | . . . . . Installed . | . . . . . Triggered . | . . . . . Machines | -11 -10 -10 -9 -8 ---------- Run | Scr Mat Min Mat Mat Machines Disabled 4 | . . . 2 2 Max in Single Turn 2 | . . . 2 1 Machines Sabotaged . | . . . . . Garrisons Compromised . | . . . . . Overloaded Fab Kills . | . . . . . Fab Network Shutdowns . | . . . . . Hacking | -11 -10 -10 -9 -8 --------- Run | Scr Mat Min Mat Mat Machines Accessed 7 | . 2 . . 5 Terminals 5 | . 1 . . 4 Fabricators . | . . . . . Repair Stations . | . . . . . Recycling Units 2 | . 1 . . 1 Scanalyzers . | . . . . . Garrison Access . | . . . . . Total Hacks 22 | . 7 . . 15 Successful 10 | . 3 . . 7 Failed 12 | . 4 . . 8 Catastrophic 1 | . . . . 1 Database Lockouts . | . . . . . Manual 16 | . 4 . . 12 Terminals 16 | . 4 . . 12 Fabricators . | . . . . . Repair Stations . | . . . . . Recycling Units 6 | . 3 . . 3 Scanalyzers . | . . . . . Garrison Access . | . . . . . Terminal Hacks 5 | . 1 . . 4 Alert Level 1 | . . . . 1 Unreport Threat 1 | . . . . 1 Dispatch Records 1 | . . . . 1 Recall Reinforcements 1 | . . . . 1 Zone Layout 1 | . 1 . . . Fabricator Hacks . | . . . . . Repair Station Hacks . | . . . . . Recycling Unit Hacks 4 | . 1 . . 3 Process 1 | . . . . 1 Report Inventory 2 | . 1 . . 1 Retrieve Matter 1 | . . . . 1 Scanalyzer . | . . . . . Garrison Access Hacks . | . . . . . Unauthorized Hacks 4 | . 4 . . . Terminals 1 | . 1 . . . Botnet 1 | . 1 . . . Fabricators . | . . . . . Repair Stations . | . . . . . Recycling Units . | . . . . . Scanalyzers . | . . . . . Garrison Access . | . . . . . Data Cores Recovered 1 | . . . . 1 Used 1 | . . . . 1 Hacking Detections 6 | . 2 . . 4 Full Trace Events 1 | . . . . 1 Feedback Events . | . . . . . Feedback Blocked . | . . . . . Robot Schematics Acquired . | . . . . . Robots Built . | . . . . . Matter . | . . . . . Time . | . . . . . Total Robot Build Rating . | . . . . . Part Schematics Acquired . | . . . . . Parts Built . | . . . . . Matter . | . . . . . Time . | . . . . . Total Part Build Rating . | . . . . . Parts Repaired . | . . . . . Time . | . . . . . Parts Recycled . | . . . . . Recycled Matter 3 | . . . . 3 Retrieved Matter 3 | . . . . 3 Retrieved Components . | . . . . . Parts Scanalyzed . | . . . . . Part Schematics Acquired . | . . . . . Parts Damaged . | . . . . . Bothacking | -11 -10 -10 -9 -8 ------------ Run | Scr Mat Min Mat Mat Used RIF Installer . | . . . . . Robots Hacked . | . . . . . Non-combat . | . . . . . Combat . | . . . . . Robot Hacks Applied . | . . . . . Relay Couplers Released . | . . . . . Robots Rewired . | . . . . . Allies Hacked . | . . . . . Hacks Repelled . | . . . . . Allies | -11 -10 -10 -9 -8 -------- Run | Scr Mat Min Mat Mat Total Allies 1 | . . 1 . . Largest Group 1 | . . 1 1 . Highest-Rated Group 31 | . . 31 31 . Highest-Rated Ally 31 | . . 31 31 . Total Orders . | . . . . . Ally Attacks 12 | . . . 12 . Total Damage 169 | . . . 169 . Kills 4 | . . . 4 . Allies Corrupted . | . . . . . Allies Melted . | . . . . . Intel | -11 -10 -10 -9 -8 ------- Run | Scr Mat Min Mat Mat Robot Analysis Total . | . . . . . Derelict Logs Recovered . | . . . . . Drone Launches . | . . . . . Drone Recoveries . | . . . . . Exploration | -11 -10 -10 -9 -8 ------------- Run | Scr Mat Min Mat Mat Turns Passed 831 | 60 140 22 356 253 Spaces Moved 704 | 54 145 21 223 261 Core 106 | 3 . . . 103 Treads . | . . . . . Legs 28 | . . . . 28 Wheels 537 | 51 145 21 223 97 Hover 33 | . . . . 33 Flight . | . . . . . Fastest Speed 50 | 50 80 80 80 50 Average Speed 81 | 78 80 80 89 75 Slowest Speed 130 | 80 80 80 100 130 Overloaded Moves . | . . . . . Propulsion Burnouts . | . . . . . Robots Hopped . | . . . . . Cave-ins Triggered . | . . . . . Exploration Rate (%) 21 | 4 28 14 40 23 Regions Visited 4 Branch Regions 1 Pre-discovered Areas . | . . . . . Known Exits Taken . | . . . . . Unknown Exits Taken 4 | 1 1 1 1 . Scrap Searched . | . . . . . Spaces Dug . | . . . . . Terrain Destroyed 38 | . . . 30 8 Melee . | . . . . . Projectile . | . . . . . AOE 38 | . . . 30 8 Actions | -11 -10 -10 -9 -8 --------- Run | Scr Mat Min Mat Mat Total 870 | 66 170 25 308 301 Wait 40 | . 16 4 20 . Move 700 | 53 144 20 222 261 Hop . | . . . . . Pick Up 14 | 4 5 . 2 3 Fast Attach 29 | 7 1 . 10 11 Attach 6 | . . . 4 2 Detach 3 | 1 . . 2 . Swap 3 | . . . 3 . Drop 19 | . 4 . 6 9 Fire 48 | 1 . . 39 8 Melee . | . . . . . Ram 3 | . . 1 . 2 Kick 5 | . . . . 5 Crush . | . . . . . Escape Stasis . | . . . . . Rewire . | . . . . . Trap . | . . . . . Miscellaneous . | . . . . . Route ------- -11/Scrapyard -10/Materials -10/Mines -9/Materials -8/Materials History --------- Turn | Location | Event 38 | -11/Scrapyard | Discovered new exit (range 14) 61 | -11/Scrapyard | Entered Materials 135 | -10/Materials | Discovered new exit (range 12) 201 | -10/Materials | Entered Mines 204 | -10/Mines | Received a Mining Laser from a helpful Derelict 215 | -10/Mines | Discovered new exit (range 4) 223 | -10/Mines | Entered Materials 223 | -9/Materials | Accompanied by 1 ally 223 | -9/Materials | Evolved 2 slots: Propulsion x1, Utility x1 315 | -9/Materials | Build established: Mutant 479 | -9/Materials | Lost 4 parts (1n1u2w) 571 | -9/Materials | Discovered new exit (range 9) 579 | -9/Materials | Entered another Materials area 579 | -8/Materials | Evolved 2 slots: Propulsion x1, Utility x1 689 | -8/Materials | Released all parts (5) 719 | -8/Materials | Lost 6 parts (1p1n2u2w) 755 | -8/Materials | Core integrity fell below 50% 825 | -8/Materials | Core integrity fell below 20% 832 | -8/Materials | Destroyed by G-47 Trooper with Particle Gun Last Messages --------------- 00792_ Dropped Imp. Cooling System. 00792_ U-05 Engineer lays Concrete. 00792_ Dropped Imp. Titanium Leg. 00793_ U-05 Engineer lays Concrete. 00793_ Dropped Imp. Titanium Leg. 00794_ U-05 Engineer lays Concrete. 00796_ Acquired Med. Reactive Plating. 00797_ U-05 Engineer lays Concrete. 00801_ K-01 Serf collects debris. 00802_ U-05 Engineer lays Concrete. 00804_ U-05 Engineer builds a Wall. 00805_ K-01 Serf collects debris. 00815_ U-05 Engineer builds a Wall. 00816_ K-01 Serf collects debris. 00824_ Slammed into G-47 Trooper. 00827_ Destabilizing: System corrupted (+2). 00828_ Kicked G-47 Trooper out of the way. 00830_ K-01 Serf cleans the Atomic Centrifuge. 00830_ Med. Reactive Plating destroyed. 00832_ Imp. Titanium Leg destroyed. Map ----- +----------------------------------------------------+ | ???? ??????^^????????????????? | | ???+ ????????????????????????? | | ???# #????????#####??????????? | | ???# #???????? #??????????? | | ???# #???????"" #??????????? | | ???# #??????""" #??????????? | | ???# #???????"" #??????????? | | ???# #??????? #??????????? | | ???+ #????????" #??????????? | | ???# #????????" #??????????? | | ???# #????????? ???????????? | | ???# #????????? ???????????? | | ???# #?????????#+#??####?????? | | ???# #?#####???# #? #?????? | | ???# ###"T"##### #?!! !#?????? | | #### # !! #?????? | | # ! *#?????? | | T + #?????? | | # #???##? | | ###### # "T" #?? ? | | ?????# # """ #?? ? | | ?????# % #######?""" # | | ?????# % #######?""" # | | ?????# ##Y # """ # | | ?????+ u g # # | | ?????# r o gY! @k""" # | | ?????# #### ### gg # """ # | | ?????# #??# = #?##gY## """ # | | ?????# #??# =!! !#??#gg#?? # | | ?????# #??# =!!!!#??#g #?? # | | ?????# #??########??# #??? # | | ?????# #????????????# #?###### | | ###### #????????????# # # | | #????????????# # *# | | ###### #????????????# + "" # | | ?????# #????????????# # "T ! # | | ###??# #########????# # "" # | | #??# # #????####? ! # | | #??# + #?????????###### | | #### # #??????????????? | | + #########??????????????? | | ####+#########???????????????? | | # [ #???????????????? | | # """"" #???????????????? | | # """"""""" #???????????????? | | # """ """ #???????????????? | | ###! |#???????????????? | | ??##############???????????????? | | | | | +----------------------------------------------------+ Best States ------------- Heat Dissipation 55 Energy Generation 10 Energy Capacity 250 Matter Stores 400 Matter Capacity 400 Sight Range 18 Terrain Scan Density 10 Armor Coverage 450 Resistance: KI 30 Evasion (%) 53 Item Schematics ----------------- None Robot Schematics ------------------ None Fabricated ------------ Nothing Alien Tech Used ----------------- None Achievements -------------- Dynamic Key Challenges ------------ None Game ------ Seed CryofiberPlasmaMace Manual? 0 Play Time 00:17:53 Cumulative 15.4 hours Start 2020.03.04 @ 16:26:23 End 2020.03.04 @ 16:39:57 Sessions 1 Manual Loads 0 Difficulty Rogue Special Mode None Game No. 33 Rogue 33 Adventurer 0 Explorer 0 Win Type - Total 0 Types 0/0/0/0/0/0/0 Lore% 10 Gallery% 33 Achievement% 21 Wizard Run 0 Options --------- ASCII 0 Keyboard 1 Movement Numpad Keybinds 0 Fullscreen 0 Font 16/SmallcapsGlow Map View 76x50 Tactical HUD 1 Map Filters NONE Filters NONE Steam 1 RUN: 9a4064e3-c161-457f-89b0-4090de649517